bitfinex-derivatives/quotes_ETHF0:USTF0_20210403
["timestamp","ask_amount","ask_price","bid_price","bid_amount"]
[1617445533473,4.65885,2103.1,2103.0,7.15809209]
[1617445534175,4.65885,2103.1,2102.9,6.0488271]
[1617445537582,4.65885,2103.1,2103.0,4.95358439]
[1617445538883,4.65885,2103.1,2102.9,4.94890096]
[1617445539984,4.65885,2103.1,2102.7,4.95109586]
[1617445541285,2.90695,2102.8,2102.7,4.95109586]
[1617445543286,2.90695,2102.8,2102.1,7.15158291]
[1617445543287,2.90695,2102.8,2102.6,6.0540586]
[1617445543886,2.90695,2102.8,2102.7,6.0534292]
[1617445544889,2.90695,2102.8,2102.7,4.94158434]
[1617445546290,2.90695,2102.8,2102.6,4.9414734]
[1617445546992,2.90695,2102.8,2102.5,4.94076418]
[1617445547491,2.90695,2102.8,2102.4,4.94168694]
[1617445547791,2.90695,2102.8,2102.5,4.9407991]
[1617445548392,2.90695,2102.8,2102.0,0.3202]
[1617445548393,2.90695,2102.8,2102.4,4.94387288]
[1617445549394,2.90695,2102.5,2102.4,4.94387288]
[1617445549593,2.90695,2102.5,2102.2,6.04435712]
[1617445550394,2.90695,2102.5,2102.3,6.03467451]
[1617445550794,2.90695,2102.5,2102.4,6.03064293]
[1617445551294,70.7061,2103.8,2102.2,7.1283135]
[1617445551695,70.7061,2103.8,2102.8,4.93527327]
[1617445552698,69.1495,2103.8,2102.9,4.93708445]
[1617445553400,2.90695,2103.0,2102.8,6.03370943]
[1617445554603,2.90695,2103.0,2102.9,6.03337255]
[1617445554803,2.90695,2103.0,2102.8,6.03324596]
[1617445556904,2.90695,2103.0,2102.4,10.03684837]
[1617445556905,2.90695,2103.0,2102.9,4.94077445]
[1617445557305,5.23805,2103.0,2102.7,6.03872432]
[1617445557708,5.23805,2103.0,2102.9,4.94191598]
[1617445559208,5.23805,2103.0,2102.8,4.94165119]
[1617445559709,5.23805,2103.0,2102.7,4.9427301]
[1617445559909,5.23805,2103.0,2102.8,4.9425674]
[1617445561510,5.23805,2103.0,2102.9,4.94017658]
[1617445561810,5.23805,2103.0,2102.9,5.0800038]
[1617445563712,5.23805,2103.0,2102.9,0.13982722]
[1617445564015,5.23805,2103.0,2102.8,4.93885031]
[1617445564413,5.23805,2103.0,2102.7,4.9384371]
[1617445564612,5.23805,2103.0,2102.5,6.0367119]
[1617445564813,5.23805,2103.0,2102.7,4.93635921]
[1617445565213,5.23805,2103.0,2102.8,0.1398358]
[1617445566016,5.23805,2103.0,2102.8,5.07647457]
[1617445566416,5.23805,2103.0,2102.8,0.1398358]
[1617445566615,5.23805,2103.0,2102.7,4.93653752]
[1617445567916,5.23805,2103.0,2102.8,0.13984886]
[1617445568618,5.23805,2103.0,2102.5,4.93150458]
[1617445569119,5.23805,2103.0,2102.6,5.07101565]
[1617445569318,5.23805,2103.0,2102.7,0.1398491]
[1617445569521,59.0874,2103.4,2102.7,0.1398491]
[1617445570019,59.0874,2103.4,2102.7,5.07505037]
[1617445570319,59.0874,2103.4,2102.8,0.13984951]
[1617445571522,2.90695,2102.9,2102.8,0.13984951]
[1617445572323,4.55565,2102.9,2102.8,0.13984951]
[1617445573027,4.55565,2102.9,2102.7,0.13984651]
[1617445574527,2.90695,2102.9,2102.7,0.13984651]
[1617445575030,2.90695,2102.9,2102.7,5.07297521]
[1617445575230,2.90695,2102.9,2102.8,4.93304285]
[1617445575431,2.90695,2102.9,2102.8,6.88638764]
[1617445577531,2.90695,2102.9,2102.8,1.95334479]
[1617445577732,2.90695,2102.9,2102.8,0.13984479]
[1617445577932,2.90695,2102.9,2102.8,5.07188383]
[1617445578332,2.90695,2102.9,2102.8,0.13984479]
[1617445580634,4.79385,2102.9,2102.8,0.13984479]
[1617445581338,4.79385,2102.9,2102.8,6.18440702]
[1617445583239,4.79385,2102.9,2102.8,0.13984479]
[1617445588948,4.79385,2102.9,2102.8,6.18994422]
[1617445589549,4.79385,2102.9,2102.8,0.13984479]
[1617445590149,4.79385,2102.9,2102.5,7.14805376]
[1617445590150,4.79385,2102.9,2102.6,0.13983402]
[1617445590349,4.79385,2102.9,2102.8,0.13983307]
[1617445590749,4.79385,2102.9,2102.6,0.13983277]
[1617445591449,4.79385,2102.9,2102.5,7.14805376]
[1617445591651,4.79385,2102.9,2102.4,8.25928872]
[1617445591851,4.79385,2102.9,2102.6,0.13983251]
[1617445592053,4.79385,2102.9,2102.8,7.15773428]
[1617445592548,4.79385,2102.9,2102.8,7.29756824]
[1617445595454,4.79385,2102.9,2102.8,0.13983396]
[1617445596755,4.79385,2102.9,2102.7,7.30082762]
[1617445596957,4.79385,2102.9,2102.7,0.13985956]
[1617445597155,2.90695,2102.9,2102.8,0.13985074]
[1617445597364,2.90695,2102.9,2102.8,7.29849383]
[1617445597562,2.90695,2102.9,2102.8,7.15864309]
[1617445597761,2.90695,2102.9,2102.8,7.29848775]
[1617445598762,2.90695,2102.9,2102.8,0.13984466]
[1617445599162,2.90695,2102.9,2102.8,1.66984466]
[1617445599464,2.90695,2102.9,2102.8,8.82916628]
[1617445599664,2.90695,2102.9,2102.8,1.66984466]
[1617445601565,2.90695,2102.9,2102.8,4.57679466]
[1617445601968,2.90695,2102.9,2102.8,13.95751082]
[1617445602266,2.90695,2102.9,2102.8,11.05056082]
[1617445604166,71.8431,2103.7,2102.8,11.05056082]
[1617445604369,71.8431,2103.7,2102.8,1.66984466]
[1617445604768,71.8431,2103.7,2103.5,8.27224254]
[1617445605269,71.8431,2103.7,2103.6,0.13980469]
[1617445605668,74.75005,2103.7,2103.6,0.13980469]
[1617445606569,74.75005,2103.7,2103.5,0.13980972]
[1617445606771,74.75005,2103.7,2103.6,0.13980897]
[1617445607071,74.75005,2103.7,2103.5,0.13980886]
[1617445608973,74.75005,2103.7,2103.5,8.41171427]
[1617445609272,2.90695,2103.7,2103.6,0.13981642]
[1617445609675,2.90695,2103.7,2103.3,8.27755058]
[1617445609974,2.90695,2103.7,2103.4,0.13981979]
[1617445610274,2.90695,2103.7,2103.3,0.13982203]
[1617445610575,2.90695,2103.7,2103.6,7.17466934]
[1617445611976,4.68395,2103.7,2103.4,8.28636246]
[1617445612376,4.68395,2103.7,2103.5,0.13982252]
[1617445615582,4.68395,2103.7,2103.4,8.28636246]
[1617445615881,4.68395,2103.7,2103.3,8.28989095]
[1617445616186,4.68395,2103.7,2103.4,0.13982708]
[1617445616582,4.68395,2103.7,2101.9,9.60020462]
[1617445617183,4.68395,2103.7,2103.5,7.18455578]
[1617445617784,4.68395,2103.7,2103.6,7.18360045]
[1617445621887,4.68395,2103.7,2102.2,2.90695]
[1617445622388,4.68395,2103.7,2102.3,0.1398167]
[1617445623189,4.68395,2103.7,2103.6,7.17034366]
[1617445625993,2.90695,2103.7,2103.6,7.17034366]
[1617445626293,2.90695,2103.7,2103.6,7.31015906]
[1617445626493,2.90695,2103.7,2103.6,0.1398154]
[1617445626894,2.90695,2103.7,2103.3,8.26617713]
[1617445627194,2.90695,2103.7,2103.4,0.13981405]
[1617445628096,2.90695,2103.7,2103.6,7.16551314]
[1617445628295,2.90695,2103.7,2103.3,8.40725046]
[1617445628495,2.90695,2103.7,2103.4,0.13981651]
[1617445629396,5.34295,2103.7,2103.3,0.13981626]
[1617445629595,5.34295,2103.7,2103.2,8.26865993]
[1617445629596,5.34295,2103.7,2103.5,0.13982061]
[1617445629796,5.34295,2103.7,2103.6,7.16701216]
[1617445632200,5.34295,2103.7,2103.4,7.16997589]
[1617445632700,5.34295,2103.7,2103.3,7.1716276]
[1617445633301,5.34295,2103.7,2103.2,7.17331727]
[1617445633602,5.34295,2103.7,2103.6,6.07057659]
[1617445634000,7.34295,2103.7,2103.6,6.07057659]
[1617445635403,7.34295,2103.7,2103.5,6.06526033]
[1617445635903,7.34295,2103.7,2103.6,6.06458939]
[1617445636303,7.34295,2103.7,2103.5,6.06468558]
[1617445637204,7.34295,2103.7,2103.6,6.06464907]
[1617445637703,7.34295,2103.7,2103.6,4.87644907]
[1617445639003,7.34295,2103.7,2103.1,7.16794537]
[1617445639907,2.90695,2103.2,2103.1,7.16794537]
[1617445640107,4.54465,2103.2,2103.1,7.16794537]
[1617445640507,4.54465,2103.2,2103.0,7.16246549]
[1617445641311,4.54465,2103.2,2102.5,8.26476897]
[1617445641510,4.54465,2103.2,2102.6,0.13986817]
[1617445642009,4.44485,2102.7,2102.6,0.13986817]
[1617445644612,4.44485,2102.7,2102.6,8.3971274]
[1617445645614,4.44485,2102.7,2102.6,0.13986817]
[1617445646015,4.44485,2102.7,2102.6,8.25751215]
[1617445646315,4.44485,2102.7,2102.6,8.39737926]
[1617445649724,4.44485,2102.7,2102.6,0.13986711]
[1617445650823,4.44485,2102.7,2102.6,8.39915109]
[1617445655331,4.44485,2102.7,2102.6,0.13986711]
[1617445655930,4.44485,2102.7,2102.3,0.1398574]
[1617445656131,2.90695,2102.4,2102.2,9.35940064]
[1617445656432,2.90695,2102.4,2102.3,9.35351309]
[1617445656632,2.90695,2102.4,2102.3,9.49336844]
[1617445657933,2.90695,2102.4,2102.3,0.13985535]
[1617445658234,2.90695,2102.4,2102.3,9.49400101]
[1617445662541,2.90695,2102.4,2102.3,0.13985535]
[1617445663241,2.90695,2102.4,2102.3,9.50602315]
[1617445666542,2.90695,2102.4,2102.3,0.13985535]
[1617445666943,2.90695,2102.4,2102.3,9.5085742]
[1617445671248,2.90695,2102.4,2102.3,9.36871885]
[1617445671547,2.90695,2102.4,2102.3,0.13985896]
[1617445681662,2.90695,2102.4,2102.2,0.1398593]
[1617445684666,2.90695,2102.4,2102.2,9.51191884]
[1617445684962,2.90695,2102.4,2102.3,0.13985943]
[1617445701383,2.90695,2102.4,2102.3,2.64655943]
[1617445703085,66.4705,2103.4,2102.3,2.64655943]
[1617445703586,0.9634,2105.4,2102.3,2.64655943]
[1617445703587,0.9634,2105.4,2103.3,7.16988122]
[1617445703885,2.571,2104.4,2103.4,0.13983531]
[1617445704185,0.9567,2104.3,2103.4,0.13983531]
[1617445704389,15.86935,2104.1,2104.0,6.06573258]
[1617445704686,15.86935,2104.1,2103.6,7.16859305]
[1617445704986,2.90695,2104.1,2103.6,7.16859305]
[1617445705186,2.90695,2104.1,2103.7,0.13983119]
[1617445705686,2.90695,2104.1,2103.7,7.30959555]
[1617445706087,2.90695,2104.1,2103.7,7.16976436]
[1617445706387,2.90695,2103.8,2103.7,7.16976436]
[1617445706787,2.90695,2103.8,2103.7,7.30959305]
[1617445707687,2.90695,2103.8,2103.7,7.16976436]
[1617445708491,2.90695,2103.8,2103.6,7.1941461]
[1617445708688,0.9546,2104.3,2103.6,7.1941461]
[1617445708889,75.4639,2104.9,2103.6,7.1941461]
[1617445709189,78.0349,2104.9,2104.2,4.98310779]
[1617445709489,78.0349,2104.9,2104.3,4.98265169]
[1617445709789,78.9818,2104.9,2104.2,4.98175838]
[1617445710390,2.90695,2104.3,2104.2,4.98175838]
[1617445710590,2.90695,2104.3,2104.1,6.08935161]
[1617445712895,2.90695,2104.3,2104.2,6.08919152]
[1617445713395,2.90695,2104.3,2104.1,6.08905929]
[1617445713795,2.90695,2104.3,2104.2,6.08842831]
[1617445714397,2.90695,2104.3,2104.1,6.09067486]
[1617445715097,2.90695,2104.3,2104.2,6.09040662]
[1617445717707,2.90695,2104.3,2104.1,6.09254649]
[1617445718907,2.90695,2104.3,2104.2,4.98297466]
[1617445719106,2.90695,2104.3,2104.0,6.09030236]
[1617445719507,2.90695,2104.3,2104.2,4.9835407]
[1617445720208,3.86755,2104.3,2104.1,4.98494054]
[1617445720408,6.25005,2104.3,2104.1,4.98494054]
[1617445720610,6.25005,2104.3,2104.0,4.98655996]
[1617445721009,2.0,2104.2,2104.0,4.09295996]
[1617445721211,2.0,2104.2,2103.0,8.31093327]
[1617445721212,2.0,2104.2,2103.7,6.0962932]
[1617445721409,73.615,2103.9,2103.7,4.1009932]
[1617445721610,73.615,2103.9,2103.7,1.8372932]
[1617445721809,73.615,2103.9,2103.7,0.2852932]
[1617445722010,73.615,2103.9,2103.2,7.2048424]
[1617445722509,2.90695,2103.3,2103.2,7.2048424]
[1617445722711,4.74795,2103.3,2103.2,7.2048424]
[1617445723713,4.74795,2103.3,2103.1,7.20663383]
[1617445727519,4.74795,2103.3,2103.2,7.22658242]
[1617445728822,4.74795,2103.3,2103.2,8.19008242]
[1617445729020,5.70495,2103.3,2103.2,8.19008242]
[1617445729924,4.74795,2103.3,2103.2,7.22658242]
[1617445732129,2.90695,2103.3,2103.2,7.22658242]
[1617445732626,2.90695,2103.3,2102.4,9.44903276]
[1617445734629,2.90695,2102.5,2102.4,9.44903276]
[1617445735030,2.90695,2102.5,2102.2,2.90695]
[1617445736231,63.6564,2103.5,2102.2,2.90695]
[1617445736431,63.6564,2103.5,2102.2,5.41315]
[1617445736633,2.90695,2102.5,2102.2,5.41315]
[1617445738032,63.6564,2103.5,2102.2,5.41315]
[1617445738332,64.6185,2103.5,2102.2,5.41315]
[1617445738531,64.6185,2103.5,2102.6,2.90695]
[1617445739032,63.6564,2103.5,2102.6,2.90695]
[1617445739835,15.0723,2104.1,2103.4,7.2124768]
[1617445740133,15.0723,2104.1,2103.3,7.21166249]
[1617445740333,2.0,2104.1,2103.3,7.21166249]
[1617445740534,2.90695,2103.8,2103.7,6.10259715]
[1617445743639,2.90695,2103.8,2103.3,7.21166249]
[1617445744140,2.90695,2103.8,2103.7,6.09824863]
[1617445744342,2.90695,2103.8,2103.3,7.21166249]
[1617445744543,2.90695,2103.4,2103.3,7.21166249]
[1617445745042,2.90695,2103.4,2103.3,7.35150829]
[1617445746142,4.58915,2103.4,2103.3,7.35150829]
[1617445747844,4.58915,2103.4,2103.3,7.21166249]
[1617445748644,2.90695,2103.4,2103.3,7.21166249]
[1617445748844,2.90695,2103.4,2103.3,7.35151103]
[1617445749044,2.90695,2103.4,2103.3,7.21166249]
[1617445749245,2.90695,2103.4,2103.2,7.20705886]
[1617445750249,2.90695,2103.4,2103.3,7.20736086]
[1617445752450,2.90695,2103.4,2103.3,7.3472078]
[1617445752951,2.90695,2103.4,2103.3,1.67204694]
[1617445754555,2.90695,2103.4,2103.3,0.13984694]
[1617445754958,2.90695,2103.4,2103.1,0.13984055]
[1617445756259,2.90695,2103.4,2103.1,8.45719523]
[1617445756657,2.90695,2103.4,2103.2,0.13984024]
[1617445757859,2.90695,2103.4,2103.3,7.21247575]
[1617445758458,2.90695,2103.4,2103.3,7.35232676]
[1617445760461,2.90695,2103.4,2103.3,0.13985101]
[1617445764363,2.90695,2103.4,2103.2,0.13984723]
[1617445765268,2.90695,2103.4,2103.1,0.13985013]
[1617445765566,2.90695,2103.4,2103.3,0.1398505]
[1617445765766,2.90695,2103.4,2103.2,0.13985101]
[1617445766166,2.90695,2103.4,2103.1,0.13984983]
[1617445766465,2.90695,2103.4,2103.3,0.1398504]
[1617445766766,2.90695,2103.4,2103.2,0.13985025]
[1617445766967,2.90695,2103.4,2103.0,8.32373868]
[1617445766968,2.90695,2103.4,2103.3,0.1398504]
[1617445767368,2.90695,2103.4,2103.1,0.13984931]
[1617445769670,2.90695,2103.4,2103.1,8.47204435]
[1617445770070,2.90695,2103.4,2103.2,1.7160485]
[1617445770470,2.90695,2103.4,2103.3,0.13984727]
[1617445771270,2.90695,2103.4,2103.2,0.1398516]
[1617445771471,2.90695,2103.4,2103.3,0.1398509]
[1617445771970,2.90695,2103.4,2103.2,0.13985163]
[1617445772170,2.90695,2103.4,2103.3,0.13985305]
[1617445772371,2.90695,2103.4,2103.1,0.13985281]
[1617445772570,53.7642,2103.3,2103.1,0.13985281]
[1617445774475,53.7642,2103.3,2103.1,8.48090845]
[1617445774775,53.7642,2103.3,2103.2,0.13985372]
[1617445776777,53.7642,2103.3,2103.1,0.13985451]
[1617445776978,53.7642,2103.3,2103.2,0.13985462]
[1617445777378,53.7642,2103.3,2103.1,0.13985495]
[1617445779482,53.7642,2103.3,2103.1,8.48887754]
[1617445779881,53.7642,2103.3,2103.2,0.13985312]
[1617445780181,53.7642,2103.3,2103.2,2.59795312]
[1617445781283,2.90695,2103.4,2103.2,2.59795312]
[1617445781682,2.90695,2103.4,2103.3,0.13984946]
[1617445782284,2.90695,2103.4,2103.3,8.48379824]
[1617445782784,2.90695,2103.4,2103.3,0.13984946]
[1617445786587,2.90695,2103.4,2103.1,0.13983511]
[1617445786788,2.90695,2103.4,2103.3,0.13983617]
[1617445787092,2.90695,2103.4,2103.0,0.13983597]
[1617445787591,2.90695,2103.4,2103.0,9.59549186]
[1617445788091,2.90695,2103.4,2103.1,0.13983437]
[1617445788293,2.90695,2103.4,2103.1,1.72633437]
[1617445788691,2.90695,2103.4,2103.2,0.13983367]
[1617445797503,2.90695,2103.4,2103.1,0.13982937]
[1617445797703,77.27965,2103.4,2103.1,0.13982937]
[1617445798904,77.27965,2103.4,2103.3,8.34838713]
[1617445799105,77.27965,2103.4,2103.3,8.48822312]
[1617445799512,77.27965,2103.4,2103.3,0.13983599]
[1617445800009,77.27965,2103.4,2103.3,8.48893022]
[1617445800210,77.27965,2103.4,2103.0,0.13983566]
[1617445800613,77.27965,2103.4,2103.0,9.60834376]
[1617445800811,2.90695,2103.4,2103.0,9.60834376]
[1617445801112,2.90695,2103.1,2103.0,9.4685081]
[1617445801511,13.9951,2104.7,2103.0,9.60834045]
[1617445801715,3.5179,2104.9,2103.0,2.32373235]
[1617445801912,3.5179,2104.9,2104.6,6.12245513]
[1617445802112,3.5179,2104.9,2104.6,8.57545513]
[1617445802514,3.5179,2104.9,2104.8,6.11854423]
[1617445802718,69.2154,2105.2,2104.7,7.22531689]
[1617445802919,2.90695,2104.8,2104.7,7.22531689]
[1617445803219,2.90695,2104.8,2104.6,2.453]
[1617445803417,2.90695,2104.8,2104.7,0.13974572]
[1617445804117,55.2154,2105.2,2104.7,0.13974572]
[1617445804718,55.2154,2105.2,2105.1,8.31588812]
[1617445804918,55.2154,2105.2,2105.1,13.27103812]
[1617445804919,58.12235,2105.2,2105.1,13.27103812]
[1617445805218,58.12235,2105.2,2105.1,13.41074259]
[1617445805418,2.90695,2105.2,2105.1,13.41074259]
[1617445805718,2.90695,2105.2,2105.1,5.09485447]
[1617445805918,2.90695,2105.2,2105.1,6.04825447]
[1617445807022,3.85905,2105.2,2105.1,6.04825447]
[1617445807220,3.85905,2105.2,2105.1,1.09310447]
[1617445807720,2.90695,2105.2,2105.1,0.13970447]
[1617445808019,2.90695,2105.2,2105.1,8.31742297]
[1617445808420,2.90695,2105.2,2105.1,0.13970804]
[1617445808718,2.90695,2105.2,2105.0,8.31876482]
[1617445809423,2.90695,2105.2,2104.8,4.96986967]
[1617445810622,2.90695,2105.2,2104.6,4.97376529]
[1617445810824,2.90695,2105.2,2104.5,4.97541986]
[1617445811022,2.90695,2104.6,2104.5,4.97541986]
[1617445811322,2.90695,2104.6,2103.8,5.14250301]
[1617445811323,2.90695,2104.6,2104.4,4.97689657]
[1617445811924,2.90695,2104.6,2104.3,4.97856673]
[1617445812324,2.90695,2104.6,2104.4,4.9778118]
[1617445812825,2.90695,2104.6,2104.3,4.97912656]
[1617445814228,2.90695,2104.6,2104.2,4.9804436]
[1617445814629,2.90695,2104.6,2104.1,68.8547]
[1617445815028,2.90695,2104.2,2104.1,68.8547]
[1617445815828,2.90695,2104.2,2104.1,73.83854113]
[1617445816930,2.90695,2104.2,2104.1,68.8547]
[1617445817129,2.90695,2104.2,2104.1,73.84049941]
[1617445817330,2.90695,2104.2,2104.1,4.98579941]
[1617445817630,2.90695,2104.2,2104.1,53.3552]
[1617445819930,2.90695,2104.2,2104.0,4.986691]
[1617445820332,2.90695,2104.2,2104.0,6.0888031]
[1617445822039,2.90695,2104.2,2104.1,4.97869059]
[1617445822234,2.90695,2104.2,2103.9,4.98188424]
[1617445822735,2.90695,2104.2,2103.7,4.98384912]
[1617445823134,2.90695,2103.8,2103.7,4.98384912]
[1617445823834,2.90695,2103.8,2103.6,4.98540054]
[1617445824738,2.90695,2103.8,2103.5,4.98839404]
[1617445825540,2.90695,2103.8,2103.6,4.98691752]
[1617445826037,2.90695,2103.8,2103.5,4.98899089]
[1617445828740,2.90695,2103.8,2103.6,4.98662405]
[1617445829141,2.90695,2103.8,2103.5,4.98756935]
[1617445830847,2.90695,2103.8,2103.4,4.98572915]
[1617445831146,2.90695,2103.5,2103.3,4.98726371]
[1617445831447,5.01155,2103.5,2103.3,4.98726371]
[1617445831647,5.01155,2103.5,2103.3,6.09996336]
[1617445831847,5.01155,2103.5,2103.4,4.99145957]
[1617445832647,5.01155,2103.5,2103.3,6.10065676]
[1617445832848,5.01155,2103.5,2103.4,4.9915787]
[1617445833848,5.01155,2103.5,2103.3,4.99109128]
[1617445834249,5.01155,2103.5,2103.4,4.99110582]
[1617445837754,2.90695,2103.5,2103.2,6.10009435]
[1617445838154,2.90695,2103.5,2103.4,6.09952819]
[1617445838554,2.90695,2103.5,2103.3,2.5229]
[1617445838754,2.0,2105.4,2103.3,2.5229]
[1617445839054,2.0,2105.4,2103.9,4.99005152]
[1617445839256,2.90695,2104.0,2103.9,4.99005152]
[1617445839959,2.90695,2104.0,2103.8,4.99031568]
[1617445840255,2.90695,2104.0,2103.7,4.99021157]
[1617445840657,2.90695,2104.0,2103.8,4.99022333]
[1617445840858,2.90695,2104.0,2103.9,4.98991961]
[1617445841659,2.90695,2104.0,2103.2,2.90695]
[1617445841660,2.90695,2104.0,2103.8,4.99001607]
[1617445842461,2.90695,2104.0,2103.6,6.09890853]
[1617445842462,2.90695,2104.0,2103.9,4.99283665]
[1617445842862,2.90695,2104.0,2103.8,4.993085]
[1617445843265,2.90695,2104.0,2103.7,4.99309303]
[1617445850077,2.90695,2104.0,2103.7,74.02779303]
[1617445850574,2.90695,2104.0,2103.8,4.99304846]
[1617445851977,2.90695,2104.0,2103.7,74.02789821]
[1617445852277,2.90695,2104.0,2103.8,4.99319524]
[1617445853580,2.90695,2104.0,2103.8,6.10556169]
[1617445853779,2.90695,2104.0,2103.9,57.0352]
[1617445854480,2.90695,2104.0,2103.9,63.14051746]
[1617445855179,2.90695,2104.0,2103.9,57.0352]
[1617445855381,2.90695,2104.0,2103.9,63.1405101]
[1617445857886,2.90695,2104.0,2103.9,57.0352]
[1617445858084,2.90695,2104.0,2103.7,2.2821]
[1617445858287,2.90695,2104.0,2103.9,0.13978383]
[1617445858584,2.90695,2104.0,2103.8,0.13978383]
[1617445860287,2.90695,2104.0,2103.7,0.13979086]
[1617445860490,2.90695,2104.0,2103.6,0.13979247]
[1617445860687,2.90695,2104.0,2103.9,6.10522813]
[1617445860887,3.85235,2104.0,2103.9,6.10522813]
[1617445861890,2.90695,2104.0,2103.9,6.10522813]
[1617445862387,2.90695,2104.0,2103.9,72.02752813]
[1617445862888,2.90695,2104.0,2103.9,65.9223]
[1617445863689,2.90695,2104.0,2103.9,66.8628]
[1617445864090,2.90695,2104.0,2103.9,67.00258159]
[1617445864690,3.86505,2104.0,2103.9,67.00258159]
[1617445865789,3.86505,2104.0,2103.9,66.06208159]
[1617445866097,3.86505,2104.0,2103.9,0.13978159]
[1617445866489,3.86505,2104.0,2103.8,7.35808322]
[1617445866690,3.86505,2104.0,2103.9,0.13977701]
[1617445867892,3.86505,2104.0,2103.8,0.13977731]
[1617445868592,3.86505,2104.0,2103.8,7.35808026]
[1617445868794,3.86505,2104.0,2103.9,0.1397763]
[1617445868995,3.86505,2104.0,2103.9,7.36157241]
[1617445869395,3.86505,2104.0,2103.9,0.1397763]
[1617445869596,2.90695,2104.0,2103.9,0.1397763]
[1617445871596,2.90695,2104.0,2103.8,0.13978522]
[1617445871896,2.90695,2104.0,2103.9,0.1397849]
[1617445872497,2.90695,2104.0,2103.8,0.13978741]
[1617445880707,2.90695,2104.0,2103.8,1.98328741]
[1617445880907,2.90695,2104.0,2103.8,9.20946335]
[1617445881108,2.90695,2104.0,2103.9,0.13978449]
[1617445882609,2.90695,2104.0,2103.9,7.36567828]
[1617445882810,2.90695,2104.0,2103.9,0.13978449]
[1617445883810,2.90695,2104.0,2103.9,7.36553824]
[1617445885813,2.90695,2104.0,2103.9,0.13978449]
[1617445886415,2.90695,2104.0,2103.9,7.36767243]
[1617445886616,2.90695,2104.0,2103.9,7.22788794]
[1617445886915,5.17095,2104.0,2103.9,0.13979375]
[1617445887616,5.17095,2104.0,2103.8,0.13979456]
[1617445887815,5.17095,2104.0,2103.9,0.13979551]
[1617445888316,5.17095,2104.0,2103.8,0.13979614]
[1617445888616,5.17095,2104.0,2103.9,0.13979485]
[1617445889217,5.17095,2104.0,2103.8,0.13979463]
[1617445889416,5.17095,2104.0,2103.9,0.13979768]
[1617445889717,5.17095,2104.0,2103.8,0.13980057]
[1617445890418,5.17095,2104.0,2103.7,0.13980253]
[1617445891018,5.17095,2104.0,2103.8,53.7605]
[1617445891318,6.10955,2104.0,2103.8,53.7605]
[1617445891519,5.17095,2104.0,2103.9,0.13980217]
[1617445892822,5.17095,2104.0,2103.6,7.22898961]
[1617445893022,5.17095,2104.0,2103.8,6.11800227]
[1617445893322,5.17095,2104.0,2103.8,5.00614373]
[1617445893522,5.17095,2104.0,2103.8,3.59764373]
[1617445893722,5.17095,2104.0,2103.5,6.11873656]
[1617445894125,5.17095,2104.0,2103.6,6.11866825]
[1617445894427,5.17095,2104.0,2103.7,6.11857726]
[1617445897029,5.17095,2104.0,2103.6,6.11882991]
[1617445897628,2.90695,2103.7,2103.6,6.11882991]
[1617445898128,2.90695,2103.7,2103.5,6.11896611]
[1617445898329,2.90695,2103.7,2103.6,6.11899995]
[1617445898929,2.90695,2103.7,2103.5,7.24742825]
[1617445900932,2.90695,2103.7,2103.3,7.23914413]
[1617445901533,2.90695,2103.7,2103.4,0.13983086]
[1617445901734,79.8398,2104.4,2103.4,7.37874225]
[1617445901936,78.9033,2104.4,2103.4,7.37874225]
[1617445902136,78.9033,2104.4,2103.8,6.12508378]
[1617445903740,2.90695,2103.9,2103.8,6.12508378]
[1617445904439,2.90695,2103.9,2103.4,7.23891139]
[1617445904839,2.90695,2103.9,2103.5,7.23859143]
[1617445905641,2.90695,2103.6,2103.5,7.23859143]
[1617445906842,2.90695,2103.6,2103.4,69.06173631]
[1617445907343,2.90695,2103.6,2103.4,61.8229]
[1617445907541,2.90695,2103.6,2103.4,69.06168696]
[1617445908645,2.90695,2103.6,2103.5,7.23838317]
[1617445908945,2.90695,2103.6,2103.5,7.37820123]
[1617445910346,3.84605,2103.6,2103.5,7.37820123]
[1617445910650,3.84605,2103.6,2103.5,0.13981806]
[1617445910851,2.90695,2103.6,2103.5,0.13981806]
[1617445911052,2.90695,2103.6,2103.4,0.13982029]
[1617445911954,3.84665,2103.6,2103.3,0.13982403]
[1617445913157,3.84665,2103.6,2103.5,7.2450886]
[1617445915160,3.84665,2103.6,2103.4,7.24556907]
[1617445915760,3.84665,2103.6,2103.5,7.24547202]
[1617445916963,3.84665,2103.6,2103.1,8.35982019]
[1617445917263,3.84665,2103.6,2103.2,8.35971956]
[1617445917462,3.84665,2103.6,2103.3,0.13982433]
[1617445917964,3.84665,2103.6,2103.3,8.4992909]
[1617445918464,3.84665,2103.6,2103.4,0.13982117]
[1617445921370,2.90695,2103.6,2103.4,0.13982117]
[1617445921971,2.90695,2103.6,2103.3,0.13982438]
[1617445922171,5.32595,2103.6,2103.5,7.24287883]
[1617445922573,5.32595,2103.6,2103.3,0.13982438]
[1617445922872,5.32595,2103.6,2103.5,0.13982107]
[1617445923072,5.32595,2103.6,2103.4,0.1398238]
[1617445923474,5.32595,2103.6,2103.2,0.13982396]
[1617445923673,5.32595,2103.6,2103.5,7.24293429]
[1617445924777,5.32595,2103.6,2103.4,7.24322834]
[1617445925177,5.32595,2103.6,2103.0,8.35757116]
[1617445925178,5.32595,2103.6,2103.5,7.24317962]
[1617445927980,6.28505,2103.6,2103.5,7.24317962]
[1617445928680,5.32595,2103.6,2103.5,7.24317962]
[1617445928880,5.32595,2103.6,2103.5,7.3830011]
[1617445929380,5.32595,2103.6,2103.5,0.13982148]
[1617445929788,5.32595,2103.6,2103.5,7.38258124]
[1617445929988,2.90695,2103.6,2103.5,7.24275976]
[1617445930181,2.90695,2103.6,2103.5,0.13981916]
[1617445930582,2.90695,2103.6,2103.3,0.13981985]
[1617445930984,3.84535,2103.6,2103.3,0.13981985]
[1617445931282,2.90695,2103.6,2103.3,0.13981985]
[1617445932384,2.90695,2103.6,2103.2,0.13982067]
[1617445933888,2.90695,2103.3,2103.2,0.13982067]
[1617445934086,4.63235,2103.3,2103.2,0.13982067]
[1617445935987,2.90695,2103.3,2103.2,0.13982067]
[1617445936390,2.90695,2103.3,2103.2,8.4977994]
[1617445937088,2.90695,2103.3,2103.2,0.13982067]
[1617445940392,2.90695,2103.3,2103.1,0.13982704]